fUST/lending_fUST_20250108
["ID","MTS","AMOUNT","RATE_DAILY","PERIOD"]
[348115509,1736329839094,-500.0,0.00021244,2]
[348115511,1736329839107,-201.68662512,0.00021244,2]
[348115512,1736329839116,-500.0,0.00021244,2]
[348115515,1736329839126,-500.0,0.00021244,2]
[348115517,1736329839135,-500.0,0.00021244,2]
[348115519,1736329839145,-500.0,0.00021244,2]
[348115521,1736329839154,-501.40045987,0.00021244,2]
[348115523,1736329839164,-500.0,0.00021244,2]
[348115525,1736329839173,-500.0,0.00021244,2]
[348115527,1736329839183,-500.0,0.00021244,2]
[348115529,1736329839193,-500.0,0.00021244,2]
[348115531,1736329839202,-500.0,0.00021244,2]
[348115533,1736329839213,-500.0,0.00021244,2]
[348115535,1736329839223,-500.0,0.00021244,2]
[348115537,1736329839233,-153.15957728,0.00021244,2]
[348115539,1736329839242,-500.0,0.00021244,2]
[348115541,1736329839251,-500.0,0.00021244,2]
[348115543,1736329839261,-500.0,0.00021244,2]
[348115545,1736329839270,-500.0,0.00021244,2]
[348115547,1736329839280,-500.0,0.00021244,2]
[348115549,1736329839289,-500.0,0.00021244,2]
[348115551,1736329839298,-500.0,0.00021244,2]
[348115553,1736329839308,-500.0,0.00021244,2]
[348115555,1736329839318,-500.0,0.00021244,2]
[348115557,1736329839328,-500.0,0.00021244,2]
[348115559,1736329839337,-500.0,0.00021244,2]
[348115561,1736329839347,-500.0,0.00021244,2]
[348115563,1736329839356,-500.0,0.00021244,2]
[348115565,1736329839366,-500.0,0.00021244,2]
[348115567,1736329839375,-500.0,0.00021244,2]
[348115569,1736329839384,-500.0,0.00021244,2]
[348115571,1736329839394,-500.0,0.00021244,2]
[348115573,1736329839404,-500.0,0.00021244,2]
[348115575,1736329839413,-537.92147689,0.00021244,2]
[348115577,1736329839423,-500.0,0.00021244,2]
[348115579,1736329839434,-500.0,0.00021244,2]
[348115581,1736329839443,-535.67491108,0.00021244,2]
[348115583,1736329839452,-500.0,0.00021244,2]
[348115585,1736329839461,-500.0,0.00021244,2]
[348115587,1736329839471,-7886.15,0.00021245,3]
[348115589,1736329839479,-43179.18979863,0.00021245,3]
[348115591,1736329839489,-10283.11193409,0.00021245,3]
[348115593,1736329839498,-500.0,0.00021246,3]
[348115595,1736329839507,-1011.94,0.00021246,3]
[348115597,1736329839517,-500.0,0.00021246,3]
[348115599,1736329839526,-482.80562568,0.00021246,3]
[348115601,1736329839536,-1193.75,0.00021247,3]
[348115603,1736329839546,-3115.11,0.00021247,3]
[348115605,1736329839559,-604.9000009,0.00021248,2]
[348115607,1736329839571,-311.86421683,0.00021273,2]
[348115609,1736329839580,-500.0,0.00021273,2]
[348115611,1736329839590,-153.0,0.000213,2]
[348115613,1736329839600,-734.6217117,0.000213,2]
[348115615,1736329839609,-580.2772485,0.000213,2]
[348115617,1736329839619,-306.9053864,0.000213,2]
[348115619,1736329839628,-500.39482014,0.000213,2]
[348115621,1736329839637,-1937.79950983,0.00021314,2]
[348115624,1736329839650,-1937.79950983,0.00021417,2]
[348115626,1736329839660,-500.0,0.00021514,3]
[348115628,1736329839670,-500.0,0.00021516,3]
[348115630,1736329839681,-500.0,0.00021516,3]
[348115632,1736329839690,-500.0,0.00021516,3]
[348115634,1736329839700,-4893.93,0.00021518,3]
[348115636,1736329839711,-500.0,0.00021518,3]
[348115638,1736329839720,-500.0,0.00021518,3]
[348115640,1736329839731,-500.0,0.00021518,3]
[348115642,1736329839741,-7886.15,0.00021518,3]
[348115644,1736329839751,-500.0,0.00021518,3]
[348115646,1736329839759,-500.0,0.0002152,3]
[348115648,1736329839769,-1011.94,0.0002152,3]
[348115650,1736329839778,-500.0,0.0002152,3]
[348115652,1736329839787,-1937.79950983,0.00021521,2]
[348115654,1736329839796,-1193.75,0.00021521,3]
[348115656,1736329839806,-3115.11,0.00021521,3]
[348115658,1736329839816,-1937.79950983,0.00021624,2]
[348115660,1736329839826,-1937.79950983,0.00021728,2]
[348115662,1736329839835,-500.0,0.00021788,3]
[348115664,1736329839845,-500.0,0.0002179,3]
[348115666,1736329839854,-500.0,0.0002179,3]
[348115668,1736329839864,-500.0,0.0002179,3]
[348115670,1736329839873,-4893.93,0.00021792,3]
[348115672,1736329839883,-500.0,0.00021792,3]
[348115674,1736329839893,-372.95343065,0.00021792,3]
[348115676,1736329839904,-514.81,0.00021792,3]
[348115678,1736329839913,-499.0,0.00021793,2]
[348115680,1736329839923,-7886.15,0.00021793,3]
[348115682,1736329839933,-413.4,0.00021794,3]
[348115684,1736329839942,-1011.94,0.00021794,3]
[348115686,1736329839952,-500.0,0.00021794,3]
[348115688,1736329839962,-1193.75,0.00021795,3]
[348115691,1736329839976,-3115.11,0.00021795,3]
[348115693,1736329839988,-7886.15,0.00021797,3]
[348115696,1736329840007,-1002.1029134,0.00021821,2]
[348115698,1736329840020,-1937.79950983,0.00021831,2]
[348115701,1736329840035,-163.59718528,0.00021899,2]
[348115703,1736329840046,-500.0,0.00021917,2]
[348115705,1736329840056,-500.0,0.00021917,2]
[348115707,1736329840068,-500.0,0.00021917,2]
[348115710,1736329840080,-500.0,0.00021917,2]
[348115712,1736329840091,-1937.79950983,0.00021934,2]
[348115714,1736329840103,-1000.0,0.00021943,2]
[348115716,1736329840114,-7886.15,0.00021967,3]
[348115719,1736329840131,-374.54317191,0.00021972,2]
[348115721,1736329840143,-7886.15,0.00021972,3]
[348115723,1736329840155,-1000.0,0.00021984,2]
[348115726,1736329840167,-536.07023601,0.00021998,2]
[348115728,1736329840179,-7886.15,0.00021998,3]
[348115730,1736329840191,-7886.15,0.00021998,3]
[348115732,1736329840203,-7886.15,0.00021998,3]
[348115734,1736329840216,-7886.15,0.00021998,3]
[348115737,1736329840228,-7886.15,0.00021998,3]
[348115739,1736329840239,-7886.15,0.00021998,3]
[348115741,1736329840251,-7886.15,0.00021998,3]
[348115743,1736329840263,-7886.15,0.00021998,3]
[348115746,1736329840275,-7886.15,0.00021999,3]
[348115748,1736329840286,-7886.15,0.00021999,3]
[348115750,1736329840297,-7886.15,0.00021999,3]
[348115752,1736329840308,-7886.15,0.00021999,3]
[348115755,1736329840320,-7886.15,0.00021999,3]
[348115757,1736329840332,-7886.15,0.00021999,3]
[348115759,1736329840342,-7886.15,0.00021999,3]
[348115761,1736329840354,-7886.37864876,0.00021999,3]
[348115763,1736329840366,-264820.46270897,0.00022,5]
[348116614,1736330036488,150.0,0.000199,2]
[348116620,1736330368007,160.031281,0.00013973,2]
[348116623,1736330805034,1000.66716802,0.0002,10]
[348116624,1736330829107,-260.5695672,0.00020264,2]
[348116625,1736330829129,-241.5512998,0.00020332,2]
[348116626,1736330829151,-225.29402048,0.00020866,2]
[348116627,1736330829173,-540.805,0.000209,2]
[348116628,1736330829195,-215.0,0.00020966,60]
[348116629,1736330829219,-123.7157039,0.00020968,3]
[348116630,1736330834138,-529.55029041,0.00020968,3]
[348116631,1736330842095,-190.01400569,0.00020968,3]
[348116632,1736330842120,-500.0,0.00020968,3]
[348116633,1736330842143,-500.0,0.00020968,3]
[348116634,1736330842165,-500.0,0.00020969,3]
[348116635,1736330842186,-500.3607789,0.0002097,3]
[348116636,1736330842207,-300.0,0.00020971,2]
[348116637,1736330842228,-565.0,0.00020971,2]
[348116638,1736330842253,-1074.32147911,0.00020972,3]
[348116640,1736330851196,-1000.0,0.000208,2]
[348116641,1736330851220,-1521.60852089,0.00020972,3]
[348116642,1736330851242,-302.15917933,0.00020972,3]
[348116643,1736330873275,153.0,0.0001964,2]
[348116686,1736331035914,-978.4977231,0.000208,3]
[348116687,1736331035926,-21.5022769,0.000208,3]
[348116688,1736331035935,-1000.0,0.000208,12]
[348116689,1736331035945,-248.42054496,0.00020863,2]
[348116690,1736331035954,-641.34490069,0.00020968,3]
[348116691,1736331035963,-197.84082067,0.00020972,3]
[348116692,1736331035973,-1018.4,0.00020972,3]
[348116693,1736331035982,-967.1312492,0.00021074,2]
[348116694,1736331036024,-381.31458326,0.00021074,2]
[348116695,1736331036035,-1794.18095559,0.00021074,2]
[348116732,1736331037778,-304.37321195,0.00021074,2]
[348116734,1736331037787,-300.0,0.00021237,2]
[348116736,1736331037796,-500.0,0.00021238,3]
[348116738,1736331037806,-500.0,0.00021238,3]
[348116740,1736331037815,-500.0,0.00021238,3]
[348116742,1736331037825,-500.0,0.00021238,3]
[348116744,1736331037835,-500.0,0.00021239,3]
[348116745,1736331037844,-500.0,0.00021239,3]
[348116747,1736331037853,-500.0,0.00021239,3]
[348116750,1736331037862,-296.10663722,0.00021239,3]
[348116751,1736331037871,-500.0,0.00021239,3]
[348116753,1736331037881,-505.84308807,0.00021239,3]
[348116754,1736331037890,-230.75633503,0.00021239,3]
[348116755,1736331037901,-269.24366497,0.00021239,3]
[348116756,1736331037911,-500.0,0.00021239,3]
[348116757,1736331037922,-500.0,0.00021239,3]
[348116758,1736331037931,-500.0,0.00021239,3]
[348116759,1736331037940,-500.0,0.00021239,3]
[348116760,1736331037950,-500.0,0.00021239,3]
[348116761,1736331037959,-500.0,0.00021239,3]
[348116762,1736331037968,-503.33106717,0.00021239,3]
[348116763,1736331037977,-505.3461421,0.00021239,3]
[348116764,1736331037987,-4078.28,0.00021239,3]
[348116765,1736331037996,-500.0,0.0002124,3]
[348116766,1736331038006,-500.0,0.0002124,3]
[348116767,1736331038017,-500.0,0.0002124,3]
[348116768,1736331038026,-368.10331501,0.0002124,3]
[348116769,1736331038038,-131.89668499,0.0002124,3]
[348116770,1736331038047,-454.58825788,0.0002124,3]
[348116771,1736331038058,-51.02491176,0.0002124,3]
[348116772,1736331038067,-748.83544064,0.00021242,3]
[348116773,1736331038081,-94.44455936,0.00021242,3]
[348116774,1736331038093,-500.0,0.00021242,3]
[348116775,1736331038103,-483.66339564,0.00021246,3]
[348116805,1736331039879,-2112.26660436,0.00021246,3]
[348116806,1736331039889,-500.0,0.00021246,3]
[348116807,1736331039899,-1018.4,0.00021246,3]
[348116808,1736331039908,-208.381,0.00021415,2]
[348116809,1736331039918,-77.89707409,0.00021512,3]
[348116813,1736331043071,-422.10292591,0.00021512,3]
[348116814,1736331043081,-500.0,0.00021512,3]
[348116815,1736331043090,-500.0,0.00021512,3]
[348116816,1736331043100,-500.0,0.00021512,3]
[348116817,1736331043109,-4078.28,0.00021513,3]
[348116819,1736331043119,-500.0,0.00021514,3]
[348116822,1736331043128,-843.28,0.00021516,3]
[348116825,1736331043137,-500.0,0.00021516,3]
[348116828,1736331043147,-1693.13771479,0.0002152,3]
[348116835,1736331173401,522.3,0.00025,120]
[348116836,1736331252751,161.753064,0.00013973,2]
[348116837,1736331319686,495.0,0.0002,2]
[348116843,1736332028136,-170.735641,0.00020109,2]
[348116844,1736332028160,-1000.0,0.000208,4]
[348116845,1736332028183,-537.606,0.000209,2]
[348116846,1736332028206,-2428.82,0.00020968,3]
[348116847,1736332028229,-500.0,0.00020968,3]
[348116848,1736332028254,-1024.45,0.00020972,3]
[348116849,1736332028275,-300.0,0.00021135,2]
[348116850,1736332028301,-3951.0,0.00021136,2]
[348116851,1736332028323,-1714.73291384,0.00021137,2]
[348116852,1736332028345,-1000.0,0.000212,5]
[348116853,1736332028367,-1000.0,0.000212,6]
[348116854,1736332028390,-500.0,0.00021236,3]
[348116855,1736332028413,-2.39973652,0.00021236,3]
[348116856,1736332029148,-497.60026348,0.00021236,3]
[348116857,1736332029173,-500.0,0.00021236,3]
[348116858,1736332029196,-500.0,0.00021236,3]
[348116859,1736332029219,-500.0,0.00021236,3]
[348116860,1736332029241,-197.23007752,0.00021236,3]
[348116867,1736332131692,163.279383,0.00013973,2]
[348116869,1736332183695,5706.2055778,0.0002,2]
[348116948,1736332232217,-300.0,0.00020999,2]
[348116950,1736332232228,-500.0,0.00020999,3]
[348116952,1736332232239,-24019.43226995,0.00021,2]
[348116954,1736332232248,-1519.26297298,0.00021136,2]
[348116955,1736332232258,-1000.0,0.000212,7]
[348116956,1736332232267,-1000.0,0.000212,8]
[348116957,1736332232277,-1000.0,0.000212,9]
[348116959,1736332232286,-1000.0,0.000212,10]
[348116961,1736332232297,-500.0,0.00021236,3]
[348116964,1736332232307,-500.0,0.00021236,3]
[348116967,1736332232316,-500.0,0.00021236,3]
[348116970,1736332232325,-500.0,0.00021236,3]
[348116973,1736332232335,-500.0,0.00021236,3]
[348116975,1736332232344,-500.0,0.00021236,3]
[348116977,1736332232353,-500.0,0.00021236,3]
[348116979,1736332232362,-500.0,0.00021236,3]
[348116981,1736332232372,-500.0,0.00021236,3]
[348116983,1736332232382,-500.0,0.00021236,3]
[348116985,1736332232391,-500.0,0.00021236,3]
[348116987,1736332232401,-500.0,0.00021236,3]
[348116989,1736332232411,-500.0,0.00021236,3]
[348116991,1736332232421,-500.0,0.00021236,3]
[348116993,1736332232431,-500.0,0.00021236,3]
[348116995,1736332232441,-500.0,0.00021236,3]
[348116997,1736332232451,-500.0,0.00021236,3]
[348116998,1736332232460,-302.76992248,0.00021236,3]
[348117000,1736332232469,-500.0,0.00021236,3]
[348117002,1736332232478,-520.23,0.00021236,3]
[348117003,1736332232487,-500.0,0.00021236,3]
[348117004,1736332232497,-500.0,0.00021236,3]
[348117005,1736332232506,-500.0,0.00021236,3]
[348117006,1736332232515,-30423.71615553,0.00021236,4]
[348117007,1736332232526,-28171.56252072,0.00021236,4]
[348117008,1736332232538,-4364.11745481,0.00021236,4]
[348117009,1736332232549,-155.32,0.00021237,2]
[348117010,1736332232560,-500.0,0.00021237,3]
[348117011,1736332232570,-500.48278249,0.00021237,3]
[348117012,1736332232580,-504.03216855,0.00021237,3]
[348117013,1736332232589,-500.0,0.00021237,3]
[348117014,1736332232599,-500.0,0.00021237,3]
[348117015,1736332232609,-500.0,0.00021237,3]
[348117016,1736332232619,-348.1282235,0.00021237,3]
[348117132,1736332240065,-572.57328636,0.00021236,2]
[348117135,1736332240077,-393.10238632,0.00021236,2]
[348117137,1736332240087,-500.0,0.00021236,2]
[348117139,1736332240096,-500.0,0.00021236,2]
[348117140,1736332240106,-392.8527679,0.00021236,2]
[348117143,1736332240121,-500.0,0.00021236,2]
[348117145,1736332240131,-500.0,0.00021236,2]
[348117147,1736332240140,-309.38686672,0.00021236,2]
[348117149,1736332240150,-151.8717765,0.00021237,3]
[348117151,1736332240160,-238.642,0.00021237,2]
[348117153,1736332240169,-238.21700252,0.00021237,3]
[348117155,1736332240179,-368.5052221,0.00021237,3]
[348117157,1736332240191,-131.4947779,0.00021237,3]
[348117159,1736332240200,-368.5052221,0.00021237,3]
[348117654,1736332246055,-500.0,0.00021236,3]
[348117655,1736332246066,-62.74862544,0.00021236,3]
[348117746,1736332407983,10000.0,0.0002,2]
[348117747,1736332416659,10000.0,0.0002,2]
[348117748,1736332424443,2106.76498222,0.0002,2]
[348117749,1736332435394,10000.0,0.00025,120]
[348117750,1736332441808,10000.0,0.00025,120]
[348117751,1736332604026,349.62,0.00015001,2]
[348117753,1736333230150,-161.36731019,0.00019821,7]
[348117754,1736333230174,-204.5323541,0.00019921,2]
[348117755,1736333230195,-7488.55504174,0.0002,2]
[348117756,1736333232925,164.627825,0.00013973,2]
[348117757,1736333239110,-404.67997604,0.0002,2]
[348117758,1736333239140,-300.0,0.0002033,2]
[348117759,1736333239169,-12624.94058873,0.0002033,2]
[348117760,1736333241108,-1670.72354327,0.0002033,2]
[348117761,1736333252291,-8089.66222461,0.0002033,2]
[348117762,1736333350188,-500.0,0.0002033,3]
[348117763,1736333350210,-500.0,0.0002033,3]
[348117764,1736333350231,-500.0,0.0002033,3]
[348117765,1736333350254,-501.34037688,0.0002033,3]
[348117766,1736333350276,-300.0,0.00020353,2]
[348117767,1736333350298,-2574.0,0.00020353,2]
[348117768,1736333350319,-9677.42369374,0.00020354,2]
[348117769,1736333350341,-9677.42369374,0.00020594,2]
[348117770,1736333350364,-181.58364467,0.00020635,3]
[348117771,1736333350391,-500.0,0.00020635,3]
[348117772,1736333350416,-500.0,0.00020635,3]
[348117773,1736333350440,-500.0,0.00020635,3]
[348117774,1736333350465,-500.0,0.00020635,3]
[348117775,1736333350488,-501.52734948,0.00020635,3]
[348117776,1736333350510,-500.0,0.00020635,3]
[348117777,1736333350534,-500.0,0.00020635,3]
[348117778,1736333350556,-500.0,0.00020635,3]
[348117779,1736333350579,-501.84941109,0.00020635,3]
[348117780,1736333350601,-500.0,0.00020635,3]
[348117781,1736333350740,-500.0,0.00020635,3]
[348117782,1736333350764,-500.0,0.00020635,3]
[348117783,1736333350788,-500.0,0.00020635,3]
[348117784,1736333350811,-500.0,0.00020635,3]
[348117785,1736333350833,-500.0,0.00020635,3]
[348117786,1736333350856,-500.0,0.00020635,3]
[348117787,1736333350877,-500.0,0.00020635,3]
[348117788,1736333350899,-500.0,0.00020635,3]
[348117789,1736333350920,-500.0,0.00020635,3]
[348117790,1736333350942,-500.0,0.00020635,3]
[348117791,1736333350964,-500.0,0.00020635,3]
[348117792,1736333350984,-155.3,0.00020635,2]
[348117793,1736333351005,-429.16448782,0.00020732,3]
[348117794,1736333351026,-500.0,0.00020732,3]
[348117795,1736333351047,-500.0,0.00020732,3]
[348117796,1736333351070,-238.31503906,0.00020732,3]
[348117797,1736333351091,-501.034134,0.00020732,3]
[348117798,1736333351112,-396.93570962,0.00020732,3]
[348117799,1736333351133,-464.31814804,0.00020732,3]
[348117800,1736333351157,-231.55837867,0.00020732,3]
[348117801,1736333351179,-9677.42369375,0.00020832,2]
[348117802,1736333351200,-500.0,0.00020842,3]
[348117803,1736333351221,-500.0,0.00020842,3]
[348117804,1736333351243,-500.0,0.00020842,3]
[348117805,1736333351264,-500.0,0.00020842,3]
[348117806,1736333351285,-500.0,0.00020842,3]
[348117807,1736333351307,-556.71422409,0.00020842,3]
[348117808,1736333351328,-500.0,0.00020842,3]
[348117809,1736333351350,-399.3839155,0.00020842,3]
[348117810,1736333351371,-500.0,0.00020842,3]
[348117811,1736333351393,-278.85877836,0.00020842,3]
[348117812,1736333351415,-500.0,0.00020842,3]
[348117813,1736333351437,-500.0,0.00020842,3]
[348117814,1736333351458,-500.0,0.00020842,3]
[348117815,1736333351481,-500.0,0.00020842,3]
[348117816,1736333351504,-500.0,0.00020842,3]
[348117817,1736333351525,-500.0,0.00020842,3]
[348117818,1736333351547,-417.5451687,0.00020842,3]
[348117819,1736333351568,-500.0,0.00020842,3]
[348117820,1736333351591,-500.0,0.00020842,3]
[348117821,1736333351613,-500.0,0.00020842,3]
[348117822,1736333351634,-500.0,0.00020842,3]
[348117823,1736333351658,-500.0,0.00020842,3]
[348117824,1736333351679,-500.0,0.00020842,3]
[348117825,1736333351700,-500.0,0.00020842,3]
[348117826,1736333351722,-500.0,0.00020842,3]
[348117827,1736333351742,-502.6255212,0.00020842,3]
[348117828,1736333351764,-500.0,0.00020842,3]
[348117829,1736333351785,-510.49000631,0.00020842,3]
[348117830,1736333351806,-500.0,0.00020842,3]
[348117831,1736333351828,-500.0,0.00020842,3]
[348117832,1736333351848,-500.98622586,0.00020842,3]
[348117833,1736333351870,-500.0,0.00020842,3]
[348117834,1736333351895,-500.0,0.00020842,3]
[348117835,1736333351916,-500.0,0.00020842,3]
[348117836,1736333351936,-500.0,0.00020842,3]
[348117837,1736333351958,-500.0,0.00020842,3]
[348117838,1736333351978,-500.0,0.00020842,3]
[348117839,1736333351998,-500.0,0.00020842,3]
[348117840,1736333352022,-501.62372157,0.00020842,3]
[348117841,1736333352044,-500.0,0.00020842,3]
[348117842,1736333352067,-500.0,0.00020842,3]
[348117843,1736333352088,-500.0,0.00020842,3]
[348117844,1736333352109,-507.93396735,0.00020842,3]
[348117845,1736333352129,-500.0,0.00020842,3]
[348117846,1736333352152,-500.81962032,0.00020842,3]
[348117847,1736333352173,-500.0,0.00020842,3]
[348117848,1736333352193,-501.6984192,0.00020842,3]
[348117849,1736333352214,-500.0,0.00020842,3]
[348117850,1736333352237,-500.0,0.00020842,3]
[348117851,1736333352258,-500.0,0.00020842,3]
[348117852,1736333352278,-500.0,0.00020842,3]
[348117853,1736333352300,-500.0,0.00020842,3]
[348117854,1736333352320,-500.0,0.00020842,3]
[348117855,1736333352340,-500.0,0.00020842,3]
[348117856,1736333352361,-500.0,0.00020842,3]
[348117857,1736333352382,-500.0,0.00020842,3]
[348117858,1736333352403,-500.0,0.00020842,3]
[348117859,1736333352423,-500.0,0.00020842,3]
[348117860,1736333352445,-500.0,0.00020842,3]
[348117861,1736333352467,-500.0,0.00020842,3]
[348117862,1736333352490,-502.42766317,0.00020842,3]
[348117863,1736333352511,-500.0,0.00020842,3]
[348117864,1736333352533,-503.62580368,0.00020842,3]
[348117865,1736333352555,-500.0,0.00020842,3]
[348117866,1736333352576,-511.78806505,0.00020842,3]
[348117867,1736333352598,-502.23798082,0.00020842,3]
[348117868,1736333352620,-500.75194839,0.00020842,3]
[348117869,1736333352642,-500.0,0.00020842,3]
[348117870,1736333352664,-500.0,0.00020842,3]
[348117871,1736333352686,-500.0,0.00020842,3]
[348117872,1736333352707,-577.46925232,0.00020842,3]
[348117873,1736333352728,-502.24743074,0.00020842,3]
[348117874,1736333352750,-500.0,0.00020842,3]
[348117875,1736333352771,-500.0,0.00020842,3]
[348117876,1736333352791,-502.23058613,0.00020842,3]
[348117877,1736333352813,-500.0,0.00020842,3]
[348117878,1736333352835,-500.0,0.00020842,3]
[348117879,1736333352858,-500.0,0.00020842,3]
[348117880,1736333352880,-502.91623463,0.00020842,3]
[348117881,1736333352901,-500.0,0.00020842,3]
[348117882,1736333352922,-500.0,0.00020842,3]
[348117883,1736333352943,-500.0,0.00020842,3]
[348117884,1736333352965,-4647.65,0.00020842,3]
[348117885,1736333352986,-500.5797417,0.00020842,3]
[348117886,1736333353008,-500.0,0.00020842,3]
[348117887,1736333353031,-500.0,0.00020842,3]
[348117888,1736333353054,-500.8055289,0.00020842,3]
[348117889,1736333353081,-500.0,0.00020842,3]
[348117890,1736333353103,-500.0,0.00020842,3]
[348117891,1736333353123,-501.51145642,0.00020842,3]
[348117892,1736333353145,-500.0,0.00020842,3]
[348117893,1736333353166,-437.15806779,0.00020842,3]
[348117894,1736333371170,-447.81707183,0.00020635,3]
[348117895,1736333371195,-475.91789265,0.00020635,3]
[348117928,1736333432406,-166.857448,0.00019685,2]
[348117929,1736333432418,-500.0,0.0002033,3]
[348117930,1736333432431,-500.0,0.00020604,3]
[348117931,1736333432441,-24.08210735,0.00020635,3]
[348117932,1736333432451,-437.25137456,0.00020635,3]
[348117933,1736333432460,-480.13,0.00020635,3]
[348117934,1736333432470,-194.26,0.00020635,3]
[348117935,1736333432480,-300.0,0.00020841,2]
[348117936,1736333432490,-62.84193221,0.00020842,3]
[348117937,1736333432501,-500.0,0.00020842,3]
[348117938,1736333432511,-153.7430222,0.00020842,3]
[348117972,1736333438239,-288.84370931,0.00020842,3]
[348117973,1736333438250,-500.0,0.00020842,3]
[348117974,1736333438261,-500.0,0.00020842,3]
[348117975,1736333438270,-500.0,0.00020842,3]
[348117976,1736333438280,-500.0,0.00020842,3]
[348117977,1736333438290,-242.48308418,0.00020842,3]
[348117978,1736333438299,-500.0,0.00020842,3]
[348117979,1736333438309,-500.0,0.00020842,3]
[348117980,1736333438319,-500.63177386,0.00020842,3]
[348117981,1736333438328,-500.0,0.00020842,3]
[348117982,1736333438338,-500.0,0.00020842,3]
[348117983,1736333438347,-501.56669957,0.00020842,3]
[348117984,1736333438357,-502.31740353,0.00020842,3]
[348117985,1736333438366,-500.0,0.00020842,3]
[348117986,1736333438380,-500.0,0.00020842,3]
[348117987,1736333438390,-571.70511911,0.00020842,3]
[348117988,1736333438400,-500.54047846,0.00020842,3]
[348117989,1736333438410,-500.0,0.00020842,3]
[348117990,1736333438419,-500.69954646,0.00020842,3]
[348117991,1736333438429,-501.62632194,0.00020842,3]
[348117992,1736333438438,-500.0,0.00020842,3]
[348117993,1736333438448,-500.0,0.00020842,3]
[348117994,1736333438459,-500.0,0.00020842,3]
[348117995,1736333438470,-500.0,0.00020842,3]
[348117996,1736333438481,-500.0,0.00020842,3]
[348117997,1736333438491,-500.0,0.00020842,3]
[348117998,1736333438500,-190.914,0.00020843,2]
[348117999,1736333438510,-500.0,0.00020878,3]
[348118000,1736333438521,-1329.35510134,0.00020899,2]
[348118001,1736333438532,-1500.0,0.000209,2]
[348118002,1736333438542,-582.408,0.000209,2]
[348118003,1736333438552,-500.0,0.00020909,3]
[348118004,1736333438563,-500.0,0.00020909,3]
[348118005,1736333438572,-500.0,0.00020909,3]
[348118006,1736333438583,-500.0,0.00020909,3]
[348118007,1736333438594,-500.0,0.00020909,3]
[348118008,1736333438603,-367.40714237,0.00020973,2]
[348118009,1736333438613,-174.97489184,0.00020973,2]
[348118010,1736333438624,-25.70809142,0.00020973,2]
[348118021,1736333440287,-500.0,0.00020842,3]
[348118022,1736333440297,-374.65333777,0.00020973,2]
[348118023,1736333440307,-500.0,0.00020973,2]
[348118024,1736333440317,-500.0,0.00020973,2]
[348118025,1736333440326,-319.24122001,0.00020973,2]
[348118026,1736333440335,-201.10543273,0.00020998,3]
[348118054,1736333443628,-424.37509992,0.00020998,3]
[348118057,1736333443639,-499.0,0.00020998,2]
[348118059,1736333443649,-500.0,0.00020999,3]
[348118061,1736333443658,-500.0,0.00020999,3]
[348118063,1736333443668,-500.0,0.00020999,3]
[348118065,1736333443677,-503.31785399,0.00020999,3]
[348118067,1736333443687,-580.5538592,0.00020999,3]
[348118069,1736333443696,-500.0,0.00020999,3]
[348118071,1736333443705,-500.0,0.00020999,3]
[348118073,1736333443715,-500.0,0.00020999,3]
[348118076,1736333443724,-500.71353062,0.00020999,3]